fUSD/lending_fUSD_20250623
["ID","MTS","AMOUNT","RATE_DAILY","PERIOD"]
[367236619,1750710652442,-490.0,0.00022249,2]
[367236621,1750710652453,-490.0,0.00022249,2]
[367236623,1750710652462,-490.0,0.00022249,2]
[367236625,1750710652471,-490.0,0.00022249,2]
[367236627,1750710652480,-500.0,0.00022249,2]
[367236629,1750710652489,-490.0,0.00022249,2]
[367236631,1750710652498,-490.0,0.00022249,2]
[367236633,1750710652507,-990.71,0.00022249,2]
[367236635,1750710652521,-490.0,0.00022249,2]
[367236637,1750710652530,-575.57,0.00022249,2]
[367236639,1750710652540,-547.20220315,0.00022249,2]
[367236641,1750710652550,-772.61,0.00022249,2]
[367236643,1750710652562,-491.06,0.00022249,2]
[367236645,1750710652571,-292.33561173,0.00022249,2]
[367236647,1750710652581,-490.09,0.00022249,2]
[367236650,1750710652592,-490.0,0.00022249,2]
[367236652,1750710652602,-490.0,0.00022249,2]
[367236653,1750710652612,-915.69,0.00022249,2]
[367236655,1750710652621,-490.0,0.00022249,2]
[367236658,1750710652631,-500.0,0.00022249,2]
[367236659,1750710652642,-490.0,0.00022249,2]
[367236661,1750710652651,-490.0,0.00022249,2]
[367236664,1750710652660,-628.66,0.00022249,2]
[367236666,1750710652670,-506.59,0.00022249,2]
[367236667,1750710652680,-220.009065,0.00022249,7]
[367236670,1750710652689,-490.0,0.00022249,2]
[367236671,1750710652699,-490.0,0.00022249,2]
[367236674,1750710652712,-490.0,0.00022249,2]
[367236676,1750710652721,-490.0,0.00022249,2]
[367236678,1750710652730,-582.75,0.00022249,2]
[367236680,1750710652739,-519.04,0.00022249,2]
[367236682,1750710652749,-490.0,0.00022249,2]
[367236684,1750710652758,-151.0,0.00022249,7]
[367236686,1750710652769,-154.234646,0.00022249,7]
[367236688,1750710652778,-490.0,0.00022249,2]
[367236690,1750710652788,-490.0,0.00022249,2]
[367236692,1750710652801,-490.0,0.00022249,2]
[367236694,1750710652810,-151.0,0.00022249,7]
[367236696,1750710652819,-152.501955,0.00022249,7]
[367236698,1750710652828,-490.0,0.00022249,2]
[367236700,1750710652838,-390.85545662,0.00022249,2]
[367236702,1750710652847,-967.15,0.00022249,2]
[367236704,1750710652857,-490.0,0.00022249,2]
[367236706,1750710652866,-875.78,0.00022249,2]
[367236708,1750710652877,-490.0,0.00022249,2]
[367236710,1750710652886,-490.0,0.00022249,2]
[367236712,1750710652895,-490.0,0.00022249,2]
[367236714,1750710652904,-660.28,0.00022249,2]
[367236716,1750710652913,-490.0,0.00022249,2]
[367236718,1750710652922,-490.0,0.00022249,2]
[367236720,1750710652933,-490.0,0.00022249,2]
[367236722,1750710652943,-559.12,0.00022249,2]
[367236724,1750710652952,-651.17,0.00022249,2]
[367236726,1750710652961,-151.0,0.00022249,7]
[367236728,1750710652970,-151.0,0.00022249,7]
[367236730,1750710652979,-490.0,0.00022249,2]
[367236732,1750710652988,-242.537724,0.00022249,7]
[367236734,1750710652998,-1191.4,0.00022249,2]
[367236736,1750710653007,-490.0,0.00022249,2]
[367236738,1750710653018,-490.0,0.00022249,2]
[367236740,1750710653027,-490.0,0.00022249,2]
[367236742,1750710653036,-1026.87,0.00022249,2]
[367236744,1750710653046,-490.0,0.00022249,2]
[367236746,1750710653055,-1291.46,0.00022249,2]
[367236748,1750710653064,-490.0,0.00022249,2]
[367236750,1750710653073,-981.07,0.00022249,2]
[367236752,1750710653082,-577.24,0.00022249,2]
[367236754,1750710653092,-490.0,0.00022249,2]
[367236756,1750710653101,-595.99,0.00022249,2]
[367236758,1750710653110,-710.64,0.00022249,2]
[367236760,1750710653120,-1205.14,0.00022249,2]
[367236762,1750710653129,-1342.57,0.00022249,2]
[367236764,1750710653139,-533.71,0.00022249,2]
[367236766,1750710653148,-679.31,0.00022249,2]
[367236768,1750710653159,-530.58,0.00022249,2]
[367236770,1750710653168,-490.0,0.00022249,2]
[367236772,1750710653178,-837.78,0.00022249,2]
[367236774,1750710653187,-500.0,0.00022249,2]
[367236776,1750710653197,-1179.84,0.00022249,2]
[367236778,1750710653206,-961.11,0.00022249,2]
[367236780,1750710653215,-151.0,0.00022249,7]
[367236782,1750710653224,-151.0,0.00022249,7]
[367236784,1750710653233,-151.0,0.00022249,7]
[367236786,1750710653242,-151.0,0.00022249,7]
[367236788,1750710653251,-151.0,0.00022249,7]
[367236790,1750710653261,-172.073934,0.00022249,7]
[367236792,1750710653270,-1136.53,0.00022249,2]
[367236794,1750710653280,-1068.72,0.00022249,2]
[367236796,1750710653289,-1354.21,0.00022249,2]
[367236798,1750710653298,-170.309933,0.00022249,7]
[367236800,1750710653308,-170.309933,0.00022249,7]
[367236802,1750710653317,-170.309933,0.00022249,7]
[367236804,1750710653326,-170.309933,0.00022249,7]
[367236806,1750710653336,-754.22,0.00022249,2]
[367236808,1750710653345,-221.531784,0.00022249,7]
[367236810,1750710653354,-221.531784,0.00022249,7]
[367236812,1750710653363,-221.531784,0.00022249,7]
[367236814,1750710653372,-221.531784,0.00022249,7]
[367236816,1750710653382,-221.531784,0.00022249,7]
[367236818,1750710653392,-221.531784,0.00022249,7]
[367236820,1750710653402,-986.32,0.00022249,2]
[367236822,1750710653411,-1008.06,0.00022249,2]
[367236824,1750710653420,-151.0,0.00022249,7]
[367236826,1750710653429,-169.215462,0.00022249,7]
[367236828,1750710653438,-200.0,0.00022249,2]
[367236830,1750710653447,-490.0,0.00022249,2]
[367236832,1750710653456,-751.37,0.00022249,2]
[367236834,1750710653465,-2029.07,0.00022249,2]
[367236836,1750710653475,-1038.6,0.00022249,2]
[367236838,1750710653485,-1214.25,0.00022249,2]
[367236840,1750710653495,-1565.01981,0.00022249,2]
[367236842,1750710653504,-490.0,0.00022249,2]
[367236844,1750710653513,-548.28,0.00022249,2]
[367236846,1750710653523,-402.63,0.00022249,2]
[367236848,1750710653532,-1332.77,0.00022249,2]
[367236850,1750710653542,-1759.61,0.00022249,2]
[367236852,1750710653551,-151.0,0.00022249,7]
[367236854,1750710653560,-151.0,0.00022249,7]
[367236856,1750710653570,-506.1,0.00022249,2]
[367236858,1750710653579,-151.0,0.00022249,7]
[367236860,1750710653588,-155.330049,0.00022249,7]
[367236862,1750710653597,-819.81,0.00022249,2]
[367236864,1750710653606,-650.5,0.00022249,2]
[367236866,1750710653616,-490.0,0.00022249,2]
[367236868,1750710653625,-151.0,0.00022249,7]
[367236870,1750710653634,-151.0,0.00022249,7]
[367236872,1750710653644,-1002.2,0.00022249,2]
[367236874,1750710653653,-931.92,0.00022249,2]
[367236876,1750710653662,-151.0,0.00022249,7]
[367236878,1750710653671,-151.0,0.00022249,7]
[367236880,1750710653681,-1531.41,0.00022249,2]
[367236882,1750710653691,-1052.06,0.00022249,2]
[367236884,1750710653700,-362.28422694,0.00022249,2]
[367236886,1750710653710,-652.81,0.00022249,2]
[367236888,1750710653719,-664.266063,0.00022249,7]
[367236890,1750710653729,-664.266063,0.00022249,7]
[367236892,1750710653740,-664.266063,0.00022249,7]
[367236894,1750710653750,-664.266063,0.00022249,7]
[367236896,1750710653760,-490.0,0.00022249,2]
[367236898,1750710653771,-300.0,0.00022249,2]
[367236899,1750710653780,-490.0,0.00022249,2]
[367236902,1750710653792,-200.0,0.00022249,2]
[367236904,1750710653802,-500.0,0.00022249,2]
[367236906,1750710653811,-159.31332,0.0002225,7]
[367236908,1750710653825,-151.0,0.0002225,7]
[367236910,1750710653835,-151.0,0.0002225,7]
[367236912,1750710653845,-151.0,0.0002225,7]
[367236914,1750710653854,-161.540541,0.0002225,7]
[367236916,1750710653866,-151.0,0.0002225,7]
[367236918,1750710653876,-253.166524,0.0002225,7]
[367236920,1750710653887,-253.166524,0.0002225,7]
[367236922,1750710653896,-151.0,0.0002225,7]
[367236924,1750710653906,-151.0,0.0002225,7]
[367236926,1750710653915,-151.0,0.0002225,7]
[367236928,1750710653924,-151.0,0.0002225,7]
[367236930,1750710653934,-151.0,0.0002225,7]
[367236932,1750710653943,-151.0,0.0002225,7]
[367236935,1750710653953,-151.0,0.0002225,7]
[367236937,1750710653962,-151.0,0.0002225,7]
[367236939,1750710653971,-150.19194519,0.00022252,2]
[367236941,1750710653980,-150.0,0.00022255,2]
[367236943,1750710653991,-150.0,0.00022257,2]
[367236945,1750710654000,-150.0,0.00022263,2]
[367236947,1750710654010,-150.0,0.00022274,2]
[367236949,1750710654020,-490.0,0.00022277,2]
[367236951,1750710654029,-490.0,0.00022277,2]
[367236953,1750710654039,-490.0,0.00022277,2]
[367236955,1750710654048,-490.0,0.00022277,2]
[367236957,1750710654057,-490.0,0.00022277,2]
[367236959,1750710654067,-490.0,0.00022277,2]
[367236961,1750710654078,-490.0,0.00022277,2]
[367236963,1750710654087,-427.63797292,0.00022277,2]
[367236965,1750710654097,-490.0,0.00022277,2]
[367236967,1750710654106,-617.01,0.00022277,2]
[367236969,1750710654115,-539.88,0.00022277,2]
[367236971,1750710654125,-498.74,0.00022277,2]
[367236973,1750710654135,-490.0,0.00022277,2]
[367236975,1750710654145,-490.0,0.00022277,2]
[367236977,1750710654156,-490.0,0.00022277,2]
[367236979,1750710654166,-490.0,0.00022277,2]
[367236981,1750710654175,-490.0,0.00022277,2]
[367236983,1750710654185,-490.0,0.00022277,2]
[367236985,1750710654195,-490.0,0.00022277,2]
[367236987,1750710654205,-490.0,0.00022277,2]
[367236989,1750710654214,-490.0,0.00022277,2]
[367236991,1750710654223,-490.0,0.00022277,2]
[367236993,1750710654232,-490.0,0.00022277,2]
[367236995,1750710654242,-490.0,0.00022277,2]
[367236997,1750710654251,-490.0,0.00022277,2]
[367236999,1750710654260,-490.0,0.00022277,2]
[367237001,1750710654270,-490.0,0.00022277,2]
[367237003,1750710654280,-490.0,0.00022277,2]
[367237005,1750710654289,-490.0,0.00022277,2]
[367237007,1750710654299,-681.88,0.00022277,2]
[367237009,1750710654308,-356.32853888,0.00022277,2]
[367237011,1750710654317,-450.34513657,0.00022277,2]
[367237013,1750710654326,-490.0,0.00022277,2]
[367237015,1750710654336,-490.0,0.00022277,2]
[367237017,1750710654345,-562.37617431,0.00022277,2]
[367237019,1750710654354,-490.0,0.00022277,2]
[367237021,1750710654364,-490.0,0.00022277,2]
[367237023,1750710654374,-490.0,0.00022277,2]
[367237025,1750710654383,-490.0,0.00022277,2]
[367237027,1750710654392,-490.0,0.00022277,2]
[367237029,1750710654402,-490.0,0.00022277,2]
[367237031,1750710654411,-490.0,0.00022277,2]
[367237033,1750710654420,-717.87,0.00022277,2]
[367237035,1750710654429,-490.0,0.00022277,2]
[367237037,1750710654439,-490.0,0.00022277,2]
[367237039,1750710654448,-490.0,0.00022277,2]
[367237041,1750710654457,-490.0,0.00022277,2]
[367237043,1750710654467,-490.0,0.00022277,2]
[367237045,1750710654476,-490.0,0.00022277,2]
[367237047,1750710654485,-490.0,0.00022277,2]
[367237048,1750710654495,-652.42,0.00022277,2]
[367237050,1750710654504,-490.0,0.00022277,2]
[367237053,1750710654515,-511.22,0.00022277,2]
[367237055,1750710654525,-490.0,0.00022277,2]
[367237057,1750710654534,-490.0,0.00022277,2]
[367237059,1750710654543,-609.02520502,0.00022277,2]
[367237061,1750710654554,-574.68,0.00022277,2]
[367237062,1750710654563,-544.43,0.00022277,2]
[367237064,1750710654573,-490.0,0.00022277,2]
[367237066,1750710654583,-490.0,0.00022277,2]
[367237068,1750710654592,-490.0,0.00022277,2]
[367237070,1750710654602,-614.40010254,0.00022277,2]
[367237072,1750710654611,-523.25,0.00022277,2]
[367237074,1750710654620,-490.0,0.00022277,2]
[367237076,1750710654630,-1496.89,0.00022277,2]
[367237078,1750710654640,-613.77,0.00022277,2]
[367237080,1750710654649,-554.75,0.00022277,2]
[367237082,1750710654659,-643.23,0.00022277,2]
[367237084,1750710654668,-631.16,0.00022277,2]
[367237086,1750710654677,-509.46,0.00022277,2]
[367237088,1750710654687,-490.0,0.00022277,2]
[367237090,1750710654696,-490.0,0.00022277,2]
[367237092,1750710654705,-490.0,0.00022277,2]
[367237094,1750710654720,-490.0,0.00022277,2]
[367237096,1750710654729,-697.47,0.00022277,2]
[367237098,1750710654738,-490.0,0.00022277,2]
[367237100,1750710654748,-490.0,0.00022277,2]
[367237102,1750710654758,-490.0,0.00022277,2]
[367237104,1750710654768,-490.0,0.00022277,2]
[367237106,1750710654778,-490.0,0.00022277,2]
[367237108,1750710654788,-490.0,0.00022277,2]
[367237110,1750710654801,-221.531784,0.00022277,7]
[367237112,1750710654810,-221.531784,0.00022277,7]
[367237114,1750710654820,-490.0,0.00022277,2]
[367237116,1750710654829,-490.0,0.00022277,2]
[367237118,1750710654840,-490.0,0.00022277,2]
[367237120,1750710654849,-490.0,0.00022277,2]
[367237122,1750710654858,-1014.68,0.00022277,2]
[367237124,1750710654868,-843.4,0.00022277,2]
[367237126,1750710654878,-490.0,0.00022277,2]
[367237128,1750710654887,-490.0,0.00022277,2]
[367237130,1750710654897,-490.0,0.00022277,2]
[367237132,1750710654906,-490.0,0.00022277,2]
[367237134,1750710654915,-490.0,0.00022277,2]
[367237136,1750710654925,-1658.74,0.00022277,2]
[367237138,1750710654934,-724.32,0.00022277,2]
[367237140,1750710654943,-490.0,0.00022277,2]
[367237142,1750710654953,-568.4,0.00022277,2]
[367237144,1750710654962,-690.87,0.00022277,2]
[367237146,1750710654971,-490.0,0.00022277,2]
[367237148,1750710654980,-893.64,0.00022277,2]
[367237150,1750710654990,-490.0,0.00022277,2]
[367237152,1750710655000,-507.95,0.00022277,2]
[367237154,1750710655009,-832.18,0.00022277,2]
[367237156,1750710655019,-490.0,0.00022277,2]
[367237158,1750710655028,-702.71,0.00022277,2]
[367237160,1750710655037,-490.0,0.00022277,2]
[367237162,1750710655047,-890.74,0.00022277,2]
[367237164,1750710655057,-772.84,0.00022277,2]
[367237166,1750710655066,-490.0,0.00022277,2]
[367237168,1750710655076,-490.0,0.00022277,2]
[367237170,1750710655085,-1094.4,0.00022277,2]
[367237172,1750710655095,-2061.61,0.00022277,2]
[367237174,1750710655105,-636.31,0.00022277,2]
[367237176,1750710655114,-20274.24,0.00022277,2]
[367237178,1750710655124,-1199.61,0.00022277,2]
[367237180,1750710655133,-654.37,0.00022277,2]
[367237182,1750710655143,-3329.3,0.00022277,2]
[367237184,1750710655153,-2581.27,0.00022277,2]
[367237186,1750710655163,-977.77,0.00022277,2]
[367237188,1750710655173,-490.0,0.00022277,2]
[367237190,1750710655182,-1888.74,0.00022277,2]
[367237192,1750710655192,-538.49,0.00022277,2]
[367237194,1750710655201,-490.0,0.00022277,2]
[367237196,1750710655211,-2037.25,0.00022277,2]
[367237198,1750710655220,-1200.34,0.00022277,2]
[367237200,1750710655229,-569.81,0.00022277,2]
[367237202,1750710655239,-935.97,0.00022277,2]
[367237204,1750710655247,-490.0,0.00022277,2]
[367237206,1750710655256,-561.15,0.00022277,2]
[367237207,1750710655268,-490.0,0.00022277,2]
[367237209,1750710655277,-1087.67,0.00022277,2]
[367237212,1750710655287,-650.26,0.00022277,2]
[367237214,1750710655296,-4332.58,0.00022277,2]
[367237215,1750710655306,-653.45,0.00022277,2]
[367237217,1750710655315,-490.0,0.00022277,2]
[367237219,1750710655325,-909.2,0.00022277,2]
[367237221,1750710655334,-490.0,0.00022277,2]
[367237223,1750710655343,-490.0,0.00022277,2]
[367237226,1750710655353,-1695.31,0.00022277,2]
[367237227,1750710655362,-635.59,0.00022277,2]
[367237229,1750710655371,-490.0,0.00022277,2]
[367237231,1750710655381,-490.0,0.00022277,2]
[367237233,1750710655390,-490.0,0.00022277,2]
[367237235,1750710655400,-554.61,0.00022277,2]
[367237237,1750710655410,-490.0,0.00022277,2]
[367237239,1750710655420,-490.0,0.00022277,2]
[367237241,1750710655429,-490.0,0.00022277,2]
[367237243,1750710655438,-641.74,0.00022277,2]
[367237246,1750710655448,-311.89920048,0.00022277,2]
[367237247,1750710655457,-490.0,0.00022277,2]
[367237249,1750710655467,-737.92,0.00022277,2]
[367237251,1750710655477,-490.0,0.00022277,2]
[367237253,1750710655486,-5079.5,0.00022277,2]
[367237256,1750710655497,-490.0,0.00022277,2]
[367237257,1750710655506,-223.72199536,0.00022277,2]
[367237259,1750710655517,-7897.14,0.00022277,2]
[367237261,1750710655526,-490.0,0.00022277,2]
[367237263,1750710655535,-490.0,0.00022277,2]
[367237265,1750710655544,-1651.51,0.00022277,2]
[367237267,1750710655554,-490.0,0.00022277,2]
[367237269,1750710655563,-6489.39,0.00022277,2]
[367237271,1750710655573,-490.0,0.00022277,2]
[367237273,1750710655582,-511.96,0.00022277,2]
[367237275,1750710655591,-300.0,0.00022277,2]
[367237277,1750710655601,-2158.68,0.00022277,2]
[367237279,1750710655610,-1190.63,0.00022277,2]
[367237281,1750710655619,-917.92,0.00022277,2]
[367237283,1750710655628,-940.86,0.00022277,2]
[367237285,1750710655638,-3167.61,0.00022277,2]
[367237287,1750710655647,-1445.98,0.00022277,2]
[367237289,1750710655656,-808.84,0.00022277,2]
[367237291,1750710655665,-730.0,0.00022277,2]
[367237293,1750710655675,-490.0,0.00022277,2]
[367237295,1750710655685,-603.51,0.00022277,2]
[367237297,1750710655694,-490.0,0.00022277,2]
[367237299,1750710655704,-490.0,0.00022277,2]
[367237301,1750710655714,-490.0,0.00022277,2]
[367237302,1750710655724,-490.0,0.00022277,2]
[367237304,1750710655734,-11169.83,0.00022277,2]
[367237306,1750710655743,-490.0,0.00022277,2]
[367237308,1750710655752,-490.0,0.00022277,2]
[367237310,1750710655763,-150.0,0.00022285,2]
[367237312,1750710655772,-300.0,0.00022295,2]
[367237314,1750710655781,-150.0,0.00022296,2]
[367237316,1750710655792,-150.19194519,0.000223,2]
[367237318,1750710655803,-2603.63,0.000223,2]
[367237320,1750710655813,-309.69121038,0.000223,2]
[367237322,1750710655822,-150.0,0.0002231,2]
[367237324,1750710655831,-150.0,0.00022325,2]
[367237326,1750710655842,-300.0,0.00022329,2]
[367237328,1750710655851,-710.06,0.00022329,2]
[367237330,1750710655860,-315.83,0.00022329,2]
[367237332,1750710655870,-455.7,0.00022329,2]
[367237334,1750710655880,-163.63,0.00022329,2]
[367237336,1750710655889,-341.66,0.00022329,2]
[367237338,1750710655899,-163.63,0.00022329,2]
[367237340,1750710655908,-455.7,0.00022329,2]
[367237342,1750710655917,-455.7,0.00022329,2]
[367237344,1750710655926,-163.63,0.00022329,2]
[367237346,1750710655935,-455.7,0.00022329,2]
[367237348,1750710655944,-163.43,0.00022329,2]
[367237350,1750710655953,-455.7,0.00022329,2]
[367237352,1750710655962,-455.7,0.00022329,2]
[367237354,1750710655972,-455.7,0.00022329,2]
[367237356,1750710655981,-9276.01056342,0.00022331,2]
[367237358,1750710655990,-14999.3633332,0.00022331,2]
[367237360,1750710656001,-500.0,0.00022331,2]
[367237362,1750710656010,-170.309933,0.00022332,7]
[367237364,1750710656020,-170.309933,0.00022332,7]
[367237366,1750710656030,-150.0,0.00022336,2]
[367237367,1750710656039,-150.19194519,0.00022347,2]
[367237369,1750710656047,-150.19194519,0.00022394,2]
[367237371,1750710656056,-150.0,0.00022397,2]
[367237372,1750710656065,-3532.67823545,0.000224,7]
[367237373,1750710656074,-3532.67823545,0.000224,7]
[367237374,1750710656083,-3532.67823545,0.000224,7]
[367237375,1750710656092,-1405.0,0.00022406,2]
[367237376,1750710656101,-208.0,0.00022408,2]
[367237377,1750710656110,-918.784414,0.0002242,4]
[367237378,1750710656119,-1565.01981,0.0002242,2]
[367237379,1750710656129,-500.0,0.00022422,2]
[367237380,1750710656138,-500.0,0.00022422,2]
[367237381,1750710656147,-151.0,0.00022423,7]
[367237382,1750710656156,-151.0,0.00022423,7]
[367237383,1750710656165,-151.0,0.00022423,7]
[367237384,1750710656174,-151.0,0.00022423,7]
[367237385,1750710656183,-151.0,0.00022423,7]
[367237386,1750710656192,-1405.0,0.00022441,2]
[367237387,1750710656202,-150.19194519,0.00022441,2]
[367237388,1750710656211,-443.93,0.00022461,2]
[367237389,1750710656221,-490.0,0.00022465,2]
[367237390,1750710656231,-490.0,0.00022465,2]
[367237391,1750710656241,-627.13,0.00022465,2]
[367237392,1750710656251,-490.0,0.00022465,2]
[367237393,1750710656260,-490.0,0.00022465,2]
[367237394,1750710656271,-490.0,0.00022465,2]
[367237395,1750710656280,-490.0,0.00022465,2]
[367237396,1750710656290,-490.0,0.00022465,2]
[367237397,1750710656300,-532.08,0.00022465,2]
[367237398,1750710656309,-490.0,0.00022465,2]
[367237399,1750710656319,-490.0,0.00022465,2]
[367237400,1750710656329,-700.46,0.00022465,2]
[367237401,1750710656340,-500.0,0.00022466,2]
[367237402,1750710656350,-500.0,0.00022466,2]
[367237403,1750710656360,-500.0,0.00022466,2]
[367237404,1750710656370,-500.0,0.00022466,2]
[367237405,1750710656380,-500.0,0.00022466,2]
[367237406,1750710656390,-500.0,0.00022466,2]
[367237407,1750710656400,-500.0,0.00022466,2]
[367237408,1750710656409,-500.0,0.00022466,2]
[367237409,1750710656419,-500.0,0.00022466,2]
[367237410,1750710656430,-500.0,0.00022466,2]
[367237412,1750710656440,-500.0,0.00022466,2]
[367237414,1750710656449,-232.60611354,0.00022466,2]
[367237416,1750710656459,-500.0,0.00022466,2]
[367237417,1750710656469,-500.0,0.00022466,2]
[367237418,1750710656479,-500.0,0.00022466,2]
[367237419,1750710656489,-500.0,0.00022466,2]
[367237420,1750710656498,-154.0004784,0.00022468,2]
[367237421,1750710656508,-200.0,0.00022471,2]
[367237422,1750710656518,-200.0,0.00022471,2]
[367237423,1750710656527,-208.0,0.00022474,2]
[367237424,1750710656537,-208.0,0.0002248,2]
[367237425,1750710656547,-9276.01056342,0.00022483,2]
[367237426,1750710656556,-14999.3633332,0.00022483,2]
[367237427,1750710656566,-151.0,0.00022484,7]
[367237428,1750710656576,-151.0,0.00022484,7]
[367237429,1750710656586,-151.0,0.00022484,7]
[367237430,1750710656596,-664.266063,0.00022484,7]
[367237431,1750710656606,-664.266063,0.00022484,7]
[367237432,1750710656616,-200.0,0.00022488,2]
[367237433,1750710656625,-150.19194519,0.00022489,2]
[367237434,1750710656636,-110386.1913373,0.00022507,2]
[367237435,1750710656646,-219.123617,0.00022519,7]
[367237436,1750710656655,-208.0,0.0002252,2]
[367237437,1750710656665,-1000.0,0.00022521,2]
[367237438,1750710656675,-300.0,0.00022521,2]
[367237440,1750710656685,-666.0,0.00022521,2]
[367237441,1750710656694,-490.0,0.00022522,2]
[367237442,1750710656704,-490.0,0.00022522,2]
[367237444,1750710656714,-490.0,0.00022522,2]
[367237445,1750710656724,-490.0,0.00022522,2]
[367237446,1750710656735,-490.0,0.00022522,2]
[367237447,1750710656745,-490.0,0.00022522,2]
[367237448,1750710656755,-490.0,0.00022522,2]
[367237449,1750710656766,-490.0,0.00022522,2]
[367237450,1750710656777,-490.0,0.00022522,2]
[367237451,1750710656788,-490.0,0.00022522,2]
[367237452,1750710656804,-741.28,0.00022522,2]
[367237453,1750710656814,-1269.87,0.00022522,2]
[367237454,1750710656824,-490.0,0.00022522,2]
[367237455,1750710656835,-283.80603417,0.00022522,2]
[367237456,1750710656845,-490.0,0.00022522,2]
[367237457,1750710656854,-1012.72,0.00022522,2]
[367237458,1750710656864,-795.49,0.00022522,2]
[367237459,1750710656873,-896.51,0.00022522,2]
[367237460,1750710656883,-930.31,0.00022522,2]
[367237461,1750710656893,-601.13,0.00022522,2]
[367237462,1750710656903,-490.0,0.00022522,2]
[367237463,1750710656912,-490.0,0.00022522,2]
[367237464,1750710656922,-490.0,0.00022522,2]
[367237465,1750710656931,-525.15,0.00022522,2]
[367237466,1750710656941,-490.0,0.00022522,2]
[367237467,1750710656951,-1089.28,0.00022522,2]
[367237468,1750710656960,-490.0,0.00022522,2]
[367237469,1750710656970,-626.68,0.00022522,2]
[367237470,1750710656980,-490.0,0.00022522,2]
[367237471,1750710656990,-490.0,0.00022522,2]
[367237472,1750710656999,-608.4,0.00022522,2]
[367237473,1750710657010,-1008.95,0.00022522,2]
[367237474,1750710657022,-490.72,0.00022522,2]
[367237475,1750710657031,-490.0,0.00022522,2]
[367237476,1750710657041,-624.59,0.00022522,2]
[367237477,1750710657051,-900.56,0.00022522,2]
[367237478,1750710657061,-1031.49,0.00022522,2]
[367237479,1750710657071,-490.0,0.00022522,2]
[367237480,1750710657081,-528.27,0.00022522,2]
[367237481,1750710657091,-665.24,0.00022522,2]
[367237482,1750710657100,-711.68,0.00022522,2]
[367237483,1750710657110,-578.52,0.00022522,2]
[367237484,1750710657120,-814.58,0.00022522,2]
[367237485,1750710657130,-559.95,0.00022522,2]
[367237486,1750710657140,-650.52,0.00022522,2]
[367237487,1750710657151,-490.0,0.00022522,2]
[367237488,1750710657162,-578.68,0.00022522,2]
[367237489,1750710657172,-515.84,0.00022522,2]
[367237490,1750710657182,-986.04,0.00022522,2]
[367237491,1750710657191,-847.2,0.00022522,2]
[367237492,1750710657201,-490.0,0.00022522,2]
[367237493,1750710657211,-1020.42,0.00022522,2]
[367237494,1750710657221,-490.0,0.00022522,2]
[367237495,1750710657233,-507.22,0.00022522,2]
[367237496,1750710657242,-651.95,0.00022522,2]
[367237497,1750710657254,-162.1,0.00022522,2]
[367237498,1750710657264,-731.82,0.00022522,2]